[Event "Titled Tuesday Blitz October 11 Late 2022"]
[White "Haszon, David"]
[Black "Dardha, Arben"]
[WhiteFideId "733610"]
[BlackFideId "4700481"]
[WhiteElo "2211"]
[BlackElo "2196"]
[Result "0-1"]
[Round "11"]
[TimeControl "180+1"]
[Date "2022.10.12"]
[WhiteClock "0:02:17"]
[BlackClock "0:02:33"]

1. e4 {[%clk 0:03:00]}  c5 {[%clk 0:02:53]} 2. Nf3 {[%clk 0:03:01]}  Nc6 {[%clk 0:02:53]} 3. d4 {[%clk 0:03:01]}  cxd4 {[%clk 0:02:53]} 4. Nxd4 {[%clk 0:03:02]}  e5 {[%clk 0:02:53]} 5. Nb5 {[%clk 0:03:02]}  Nf6 {[%clk 0:02:54]} 6. N1c3 {[%clk 0:03:01]}  d6 {[%clk 0:02:54]} 7. Bg5 {[%clk 0:03:00]}  a6 {[%clk 0:02:55]} 8. Na3 {[%clk 0:03:00]}  b5 {[%clk 0:02:56]} 9. Bxf6 {[%clk 0:03:01]}  gxf6 {[%clk 0:02:56]} 10. Nd5 {[%clk 0:03:01]}  f5 {[%clk 0:02:56]} 11. g3 {[%clk 0:03:01]}  fxe4 {[%clk 0:02:55]} 12. Bg2 {[%clk 0:03:02]}  Bg7 {[%clk 0:02:54]} 13. Bxe4 {[%clk 0:03:00]}  O-O {[%clk 0:02:55]} 14. Ne3 {[%clk 0:02:58]}  Bd7 {[%clk 0:02:52]} 15. Qxd6 {[%clk 0:02:55]}  Nd4 {[%clk 0:02:50]} 16. c3 {[%clk 0:02:50]}  Ne6 {[%clk 0:02:45]} 17. Rd1 {[%clk 0:02:43]}  Ra7 {[%clk 0:02:43]} 18. O-O {[%clk 0:02:35]}  Ng5 {[%clk 0:02:41]} 19. Bg2 {[%clk 0:02:33]}  Qf6 {[%clk 0:02:35]} 20. Qb6 {[%clk 0:02:17]}  Qxb6 {[%clk 0:02:33]} 0-1


[Site "https://www.chess.com"]

[Event "Titled Tuesday Blitz October 11 Late 2022"]
[White "Jensen, Matthew R"]
[Black "Melikhov, Evgeny V."]
[WhiteFideId "2018110"]
[BlackFideId "4122046"]
[WhiteElo "2306"]
[BlackElo "2169"]
[Result "0-1"]
[Round "11"]
[TimeControl "180+1"]
[Date "2022.10.12"]
[WhiteClock "0:00:23"]
[BlackClock "0:00:52"]

1. d4 {[%clk 0:03:00]}  Nf6 {[%clk 0:02:59]} 2. c4 {[%clk 0:03:00]}  e6 {[%clk 0:02:59]} 3. g3 {[%clk 0:03:00]}  d5 {[%clk 0:02:59]} 4. Bg2 {[%clk 0:03:01]}  dxc4 {[%clk 0:02:59]} 5. Qa4+ {[%clk 0:03:01]}  Bd7 {[%clk 0:02:59]} 6. Qxc4 {[%clk 0:03:01]}  Bc6 {[%clk 0:02:59]} 7. Nf3 {[%clk 0:03:01]}  Qd5 {[%clk 0:02:58]} 8. Qxd5 {[%clk 0:02:57]}  Bxd5 {[%clk 0:02:57]} 9. Nc3 {[%clk 0:02:57]}  Bb4 {[%clk 0:02:45]} 10. O-O {[%clk 0:02:56]}  Bxc3 {[%clk 0:02:41]} 11. bxc3 {[%clk 0:02:56]}  O-O {[%clk 0:02:38]} 12. Nd2 {[%clk 0:02:36]}  Bxg2 {[%clk 0:02:37]} 13. Kxg2 {[%clk 0:02:37]}  c5 {[%clk 0:02:33]} 14. Ba3 {[%clk 0:02:34]}  Rc8 {[%clk 0:02:32]} 15. Bxc5 {[%clk 0:02:20]}  Na6 {[%clk 0:02:31]} 16. Be7 {[%clk 0:02:18]}  Rxc3 {[%clk 0:02:29]} 17. Bxf6 {[%clk 0:02:18]}  gxf6 {[%clk 0:02:28]} 18. Ne4 {[%clk 0:02:19]}  Rc2 {[%clk 0:02:24]} 19. Nxf6+ {[%clk 0:02:18]}  Kf8 {[%clk 0:01:53]} 20. Nxh7+ {[%clk 0:02:14]}  Ke7 {[%clk 0:01:52]} 21. e3 {[%clk 0:02:05]}  f6 {[%clk 0:01:51]} 22. Rfb1 {[%clk 0:01:58]}  b6 {[%clk 0:01:38]} 23. Rb5 {[%clk 0:01:57]}  Rh8 {[%clk 0:01:37]} 24. Rh5 {[%clk 0:01:57]}  Nb4 {[%clk 0:01:33]} 25. Nxf6 {[%clk 0:01:55]}  Rxh5 {[%clk 0:01:30]} 26. Nxh5 {[%clk 0:01:55]}  Nxa2 {[%clk 0:01:30]} 27. Nf4 {[%clk 0:01:51]}  b5 {[%clk 0:01:28]} 28. d5 {[%clk 0:01:28]}  e5 {[%clk 0:01:21]} 29. Nd3 {[%clk 0:01:25]}  e4 {[%clk 0:01:05]} 30. Nc5 {[%clk 0:01:09]}  b4 {[%clk 0:01:04]} 31. Nxe4 {[%clk 0:01:03]}  b3 {[%clk 0:01:05]} 32. Rb1 {[%clk 0:00:56]}  b2 {[%clk 0:01:05]} 33. Kf1 {[%clk 0:00:45]}  a5 {[%clk 0:01:04]} 34. Ke1 {[%clk 0:00:44]}  a4 {[%clk 0:01:04]} 35. h4 {[%clk 0:00:42]}  Rc1+ {[%clk 0:00:59]} 36. Ke2 {[%clk 0:00:34]}  Rxb1 {[%clk 0:00:58]} 37. Nd2 {[%clk 0:00:34]}  Rc1 {[%clk 0:00:57]} 38. h5 {[%clk 0:00:31]}  Rc2 {[%clk 0:00:54]} 39. h6 {[%clk 0:00:26]}  Rxd2+ {[%clk 0:00:54]} 40. Kxd2 {[%clk 0:00:27]}  b1=Q {[%clk 0:00:55]} 41. f3 {[%clk 0:00:23]}  Qg6 {[%clk 0:00:52]} 42. e4 {[%clk 0:00:23]} 0-1


[Site "https://www.chess.com"]

[Event "Titled Tuesday Blitz October 11 Late 2022"]
[White "Jobava, Baadur"]
[Black "Indjic, Aleksandar"]
[WhiteFideId "13601520"]
[BlackFideId "911925"]
[WhiteElo "2582"]
[BlackElo "2592"]
[Result "1-0"]
[Round "11"]
[TimeControl "180+1"]
[Date "2022.10.11"]
[WhiteClock "0:01:00"]
[BlackClock "0:00:13"]

1. b3 {[%clk 0:03:00]}  d5 {[%clk 0:02:57]} 2. Bb2 {[%clk 0:03:01]}  Bf5 {[%clk 0:02:57]} 3. d3 {[%clk 0:03:02]}  Nf6 {[%clk 0:02:54]} 4. Nd2 {[%clk 0:03:02]}  h6 {[%clk 0:02:54]} 5. g3 {[%clk 0:03:03]}  e6 {[%clk 0:02:55]} 6. Bg2 {[%clk 0:03:04]}  Bh7 {[%clk 0:02:55]} 7. e4 {[%clk 0:03:03]}  Be7 {[%clk 0:02:55]} 8. Nh3 {[%clk 0:03:02]}  a5 {[%clk 0:02:55]} 9. a3 {[%clk 0:03:01]}  c6 {[%clk 0:02:54]} 10. O-O {[%clk 0:03:01]}  O-O {[%clk 0:02:53]} 11. Re1 {[%clk 0:03:02]}  Na6 {[%clk 0:02:52]} 12. Nf4 {[%clk 0:03:02]}  Nc5 {[%clk 0:02:47]} 13. e5 {[%clk 0:03:00]}  Ne8 {[%clk 0:02:42]} 14. h4 {[%clk 0:03:00]}  b5 {[%clk 0:02:39]} 15. Qg4 {[%clk 0:03:00]}  Kh8 {[%clk 0:02:37]} 16. Nf3 {[%clk 0:02:59]}  Nd7 {[%clk 0:02:27]} 17. Qh5 {[%clk 0:02:53]}  c5 {[%clk 0:01:58]} 18. g4 {[%clk 0:02:45]}  Nc7 {[%clk 0:01:39]} 19. g5 {[%clk 0:02:43]}  Bf5 {[%clk 0:01:27]} 20. Nh2 {[%clk 0:02:24]}  Kg8 {[%clk 0:01:25]} 21. Re3 {[%clk 0:02:09]}  g6 {[%clk 0:01:18]} 22. Qf3 {[%clk 0:01:53]}  hxg5 {[%clk 0:01:17]} 23. hxg5 {[%clk 0:01:54]}  Bxg5 {[%clk 0:01:17]} 24. Qg3 {[%clk 0:01:33]}  d4 {[%clk 0:01:12]} 25. Re2 {[%clk 0:01:27]}  Rb8 {[%clk 0:01:05]} 26. Nf3 {[%clk 0:01:27]}  Be7 {[%clk 0:00:47]} 27. b4 {[%clk 0:01:27]}  axb4 {[%clk 0:00:47]} 28. axb4 {[%clk 0:01:27]}  Nb6 {[%clk 0:00:34]} 29. bxc5 {[%clk 0:01:24]}  Bxc5 {[%clk 0:00:34]} 30. Bc1 {[%clk 0:01:12]}  Kg7 {[%clk 0:00:30]} 31. Nh5+ {[%clk 0:01:12]}  Kg8 {[%clk 0:00:16]} 32. Nf6+ {[%clk 0:01:12]}  Qxf6 {[%clk 0:00:16]} 33. exf6 {[%clk 0:01:11]}  Ncd5 {[%clk 0:00:17]} 34. Bg5 {[%clk 0:01:08]}  Ra8 {[%clk 0:00:17]} 35. Rxa8 {[%clk 0:01:06]}  Rxa8 {[%clk 0:00:18]} 36. Qh4 {[%clk 0:01:03]}  Ra1+ {[%clk 0:00:18]} 37. Re1 {[%clk 0:01:03]}  Ra7 {[%clk 0:00:15]} 38. Nxd4 {[%clk 0:01:03]}  Bxd4 {[%clk 0:00:15]} 39. Qxd4 {[%clk 0:01:02]}  Rd7 {[%clk 0:00:13]} 40. Qh4 {[%clk 0:01:00]} 1-0


[Site "https://www.chess.com"]

[Event "Titled Tuesday Blitz October 11 Late 2022"]
[White "Krzywda, Andrzej"]
[Black "Vega Gutierrez, Sabrina"]
[WhiteFideId "1114565"]
[BlackFideId "2219026"]
[WhiteElo "2149"]
[BlackElo "2261"]
[Result "0-1"]
[Round "11"]
[TimeControl "180+1"]
[Date "2022.10.12"]
[WhiteClock "0:00:03"]
[BlackClock "0:00:19"]

1. e4 {[%clk 0:03:00]}  c5 {[%clk 0:02:59]} 2. Nf3 {[%clk 0:03:00]}  e6 {[%clk 0:02:58]} 3. d4 {[%clk 0:02:58]}  cxd4 {[%clk 0:02:58]} 4. Nxd4 {[%clk 0:02:58]}  Nc6 {[%clk 0:02:59]} 5. Nc3 {[%clk 0:02:58]}  a6 {[%clk 0:03:00]} 6. a3 {[%clk 0:02:56]}  Nf6 {[%clk 0:02:58]} 7. Be3 {[%clk 0:02:44]}  d5 {[%clk 0:02:45]} 8. exd5 {[%clk 0:02:17]}  Nxd5 {[%clk 0:02:44]} 9. Nxd5 {[%clk 0:02:14]}  Qxd5 {[%clk 0:02:45]} 10. c4 {[%clk 0:02:07]}  Qd7 {[%clk 0:02:31]} 11. Be2 {[%clk 0:02:04]}  e5 {[%clk 0:02:13]} 12. Nxc6 {[%clk 0:01:59]}  Qxc6 {[%clk 0:02:13]} 13. O-O {[%clk 0:01:54]}  Be7 {[%clk 0:02:07]} 14. Rc1 {[%clk 0:01:47]}  O-O {[%clk 0:02:06]} 15. b4 {[%clk 0:01:47]}  Be6 {[%clk 0:02:02]} 16. Bf3 {[%clk 0:01:47]}  e4 {[%clk 0:01:56]} 17. Be2 {[%clk 0:01:45]}  f5 {[%clk 0:01:55]} 18. g3 {[%clk 0:01:28]}  Rad8 {[%clk 0:01:53]} 19. Qc2 {[%clk 0:01:26]}  g5 {[%clk 0:01:37]} 20. Rfd1 {[%clk 0:01:06]}  Rxd1+ {[%clk 0:01:30]} 21. Rxd1 {[%clk 0:00:35]}  f4 {[%clk 0:01:30]} 22. Bc1 {[%clk 0:00:30]}  e3 {[%clk 0:01:14]} 23. f3 {[%clk 0:00:18]}  g4 {[%clk 0:01:09]} 24. Rf1 {[%clk 0:00:13]}  fxg3 {[%clk 0:01:06]} 25. fxg4 {[%clk 0:00:08]}  gxh2+ {[%clk 0:01:03]} 26. Kxh2 {[%clk 0:00:08]}  Rf2+ {[%clk 0:00:24]} 27. Rxf2 {[%clk 0:00:05]}  exf2 {[%clk 0:00:25]} 28. Bf1 {[%clk 0:00:03]}  Qf3 {[%clk 0:00:19]} 0-1


[Site "https://www.chess.com"]

[Event "Titled Tuesday Blitz October 11 Late 2022"]
[White "Matinian, Nikita"]
[Black "Pinheiro, Iung Alicio de O."]
[WhiteFideId "24129100"]
[BlackFideId "2104350"]
[WhiteElo "2422"]
[BlackElo "2283"]
[Result "1-0"]
[Round "11"]
[TimeControl "180+1"]
[Date "2022.10.11"]
[WhiteClock "0:00:09"]
[BlackClock "0:00:13"]

1. e4 {[%clk 0:03:00]}  c5 {[%clk 0:02:57]} 2. Nc3 {[%clk 0:03:00]}  Nc6 {[%clk 0:02:52]} 3. Bb5 {[%clk 0:02:59]}  Nd4 {[%clk 0:02:49]} 4. Nf3 {[%clk 0:02:59]}  a6 {[%clk 0:02:44]} 5. Bd3 {[%clk 0:02:59]}  Nc6 {[%clk 0:02:42]} 6. O-O {[%clk 0:02:59]}  g6 {[%clk 0:02:40]} 7. Re1 {[%clk 0:02:57]}  Bg7 {[%clk 0:02:36]} 8. e5 {[%clk 0:02:53]}  Nh6 {[%clk 0:02:29]} 9. b3 {[%clk 0:02:53]}  O-O {[%clk 0:02:15]} 10. Bb2 {[%clk 0:02:53]}  d6 {[%clk 0:02:08]} 11. exd6 {[%clk 0:02:49]}  exd6 {[%clk 0:02:03]} 12. h3 {[%clk 0:02:49]}  Nf5 {[%clk 0:02:00]} 13. Na4 {[%clk 0:02:46]}  Nfd4 {[%clk 0:01:55]} 14. Nxd4 {[%clk 0:02:41]}  Nxd4 {[%clk 0:01:55]} 15. Nc3 {[%clk 0:02:41]}  b5 {[%clk 0:01:51]} 16. Be4 {[%clk 0:02:40]}  Ra7 {[%clk 0:01:51]} 17. Nd5 {[%clk 0:02:39]}  Bb7 {[%clk 0:01:32]} 18. c4 {[%clk 0:02:35]}  Bxd5 {[%clk 0:01:08]} 19. Bxd5 {[%clk 0:02:33]}  Re7 {[%clk 0:01:08]} 20. Rxe7 {[%clk 0:02:27]}  Qxe7 {[%clk 0:01:09]} 21. Bxd4 {[%clk 0:02:16]}  Bxd4 {[%clk 0:01:08]} 22. Qe1 {[%clk 0:02:15]}  Qd7 {[%clk 0:01:00]} 23. Rd1 {[%clk 0:02:12]}  Re8 {[%clk 0:01:00]} 24. Qf1 {[%clk 0:02:12]}  Qe7 {[%clk 0:01:00]} 25. cxb5 {[%clk 0:02:04]}  axb5 {[%clk 0:00:59]} 26. Qxb5 {[%clk 0:02:03]}  Kf8 {[%clk 0:00:27]} 27. Rf1 {[%clk 0:01:59]}  Qg5 {[%clk 0:00:25]} 28. Bc6 {[%clk 0:01:51]}  Re6 {[%clk 0:00:21]} 29. Qd3 {[%clk 0:01:40]}  d5 {[%clk 0:00:19]} 30. Bd7 {[%clk 0:01:38]}  Rd6 {[%clk 0:00:18]} 31. Bg4 {[%clk 0:01:37]}  h5 {[%clk 0:00:19]} 32. Bf3 {[%clk 0:01:37]}  h4 {[%clk 0:00:19]} 33. a4 {[%clk 0:01:35]}  Qf6 {[%clk 0:00:16]} 34. a5 {[%clk 0:01:33]}  Kg7 {[%clk 0:00:16]} 35. a6 {[%clk 0:01:27]}  Rxa6 {[%clk 0:00:16]} 36. Bxd5 {[%clk 0:01:27]}  Rd6 {[%clk 0:00:16]} 37. Qc4 {[%clk 0:01:21]}  Qf4 {[%clk 0:00:15]} 38. d3 {[%clk 0:01:12]}  Qf5 {[%clk 0:00:12]} 39. Be4 {[%clk 0:01:09]}  Qf4 {[%clk 0:00:12]} 40. Bf3 {[%clk 0:01:09]}  Re6 {[%clk 0:00:10]} 41. Qc2 {[%clk 0:00:58]}  Rb6 {[%clk 0:00:09]} 42. Re1 {[%clk 0:00:46]}  Rf6 {[%clk 0:00:08]} 43. Re4 {[%clk 0:00:42]}  Qg5 {[%clk 0:00:09]} 44. Rg4 {[%clk 0:00:38]}  Qe5 {[%clk 0:00:09]} 45. Qd1 {[%clk 0:00:31]}  Ra6 {[%clk 0:00:07]} 46. Re4 {[%clk 0:00:28]}  Qf6 {[%clk 0:00:07]} 47. Re1 {[%clk 0:00:25]}  Ra2 {[%clk 0:00:08]} 48. Rf1 {[%clk 0:00:24]}  Qe5 {[%clk 0:00:06]} 49. Be4 {[%clk 0:00:22]}  Qg3 {[%clk 0:00:05]} 50. Qf3 {[%clk 0:00:22]}  Qg5 {[%clk 0:00:04]} 51. Bd5 {[%clk 0:00:20]}  f5 {[%clk 0:00:04]} 52. Bc4 {[%clk 0:00:16]}  Qd2 {[%clk 0:00:04]} 53. Kh1 {[%clk 0:00:16]}  Kh6 {[%clk 0:00:04]} 54. Bf7 {[%clk 0:00:09]}  Bxf2 {[%clk 0:00:04]} 55. Qc6 {[%clk 0:00:08]}  Qg5 {[%clk 0:00:04]} 56. Qe8 {[%clk 0:00:07]}  Qg3 {[%clk 0:00:03]} 57. Qh8+ {[%clk 0:00:07]}  Kg5 {[%clk 0:00:04]} 58. Qd8+ {[%clk 0:00:07]}  Kh6 {[%clk 0:00:04]} 59. Bd5 {[%clk 0:00:06]}  Bd4 {[%clk 0:00:04]} 60. Qf8+ {[%clk 0:00:05]}  Bg7 {[%clk 0:00:03]} 61. Qxc5 {[%clk 0:00:05]}  Rf2 {[%clk 0:00:04]} 62. Qxf2 {[%clk 0:00:04]}  Qg5 {[%clk 0:00:04]} 63. Qf4 {[%clk 0:00:04]}  Bf6 {[%clk 0:00:04]} 64. Qxg5+ {[%clk 0:00:04]}  Bxg5 {[%clk 0:00:05]} 65. b4 {[%clk 0:00:05]}  Be3 {[%clk 0:00:06]} 66. b5 {[%clk 0:00:06]}  g5 {[%clk 0:00:07]} 67. Rb1 {[%clk 0:00:06]}  Kg6 {[%clk 0:00:08]} 68. b6 {[%clk 0:00:06]}  Bf4 {[%clk 0:00:08]} 69. b7 {[%clk 0:00:07]}  Bb8 {[%clk 0:00:09]} 70. Rc1 {[%clk 0:00:07]}  Kf6 {[%clk 0:00:10]} 71. Rc8 {[%clk 0:00:07]}  Bf4 {[%clk 0:00:10]} 72. b8=Q {[%clk 0:00:07]}  Bxb8 {[%clk 0:00:11]} 73. Rxb8 {[%clk 0:00:08]}  g4 {[%clk 0:00:10]} 74. Rb5 {[%clk 0:00:09]}  Kg5 {[%clk 0:00:10]} 75. hxg4 {[%clk 0:00:09]}  Kf4 {[%clk 0:00:11]} 76. gxf5 {[%clk 0:00:09]}  Kg3 {[%clk 0:00:12]} 77. Rb4 {[%clk 0:00:08]}  h3 {[%clk 0:00:13]} 78. gxh3 {[%clk 0:00:08]}  Kxh3 {[%clk 0:00:12]} 79. Kg1 {[%clk 0:00:08]}  Kg3 {[%clk 0:00:12]} 80. Kf1 {[%clk 0:00:09]}  Kh3 {[%clk 0:00:13]} 81. Kf2 {[%clk 0:00:09]} 1-0


[Site "https://www.chess.com"]

[Event "Titled Tuesday Blitz October 11 Late 2022"]
[White "Mickiewicz, Piotr"]
[Black "O`Gorman, Tom"]
[WhiteFideId "1114891"]
[BlackFideId "2508249"]
[WhiteElo "2246"]
[BlackElo "2271"]
[Result "1-0"]
[Round "11"]
[TimeControl "180+1"]
[Date "2022.10.11"]
[WhiteClock "0:00:02"]
[BlackClock "0:00:14"]

1. Nf3 {[%clk 0:03:00]}  Nf6 {[%clk 0:02:59]} 2. g3 {[%clk 0:03:01]}  g6 {[%clk 0:02:59]} 3. Bg2 {[%clk 0:03:02]}  Bg7 {[%clk 0:03:00]} 4. O-O {[%clk 0:03:01]}  O-O {[%clk 0:03:01]} 5. d3 {[%clk 0:03:01]}  d6 {[%clk 0:03:00]} 6. Nbd2 {[%clk 0:03:00]}  Nc6 {[%clk 0:03:00]} 7. c3 {[%clk 0:03:00]}  e5 {[%clk 0:03:00]} 8. e4 {[%clk 0:02:58]}  a5 {[%clk 0:02:59]} 9. a4 {[%clk 0:02:55]}  Nd7 {[%clk 0:02:55]} 10. Re1 {[%clk 0:02:56]}  f5 {[%clk 0:02:49]} 11. Nc4 {[%clk 0:02:30]}  Nc5 {[%clk 0:02:43]} 12. Ne3 {[%clk 0:02:00]}  f4 {[%clk 0:02:32]} 13. Nd5 {[%clk 0:01:56]}  Bg4 {[%clk 0:02:23]} 14. h3 {[%clk 0:01:54]}  Bd7 {[%clk 0:02:19]} 15. gxf4 {[%clk 0:01:46]}  exf4 {[%clk 0:02:18]} 16. d4 {[%clk 0:01:46]}  Ne6 {[%clk 0:02:14]} 17. e5 {[%clk 0:01:39]}  dxe5 {[%clk 0:02:11]} 18. dxe5 {[%clk 0:01:38]}  g5 {[%clk 0:02:05]} 19. b3 {[%clk 0:01:32]}  h5 {[%clk 0:02:02]} 20. Ba3 {[%clk 0:01:30]}  Rf7 {[%clk 0:02:01]} 21. Nf6+ {[%clk 0:01:22]}  Bxf6 {[%clk 0:01:59]} 22. exf6 {[%clk 0:01:23]}  Qxf6 {[%clk 0:01:56]} 23. Qd5 {[%clk 0:01:19]}  g4 {[%clk 0:01:51]} 24. hxg4 {[%clk 0:01:19]}  hxg4 {[%clk 0:01:51]} 25. Ne5 {[%clk 0:01:16]}  Nxe5 {[%clk 0:01:47]} 26. Rxe5 {[%clk 0:01:10]}  f3 {[%clk 0:01:46]} 27. Bf1 {[%clk 0:01:10]}  Nf4 {[%clk 0:01:30]} 28. Rg5+ {[%clk 0:00:55]}  Kh8 {[%clk 0:01:29]} 29. Qe5 {[%clk 0:00:29]}  Qxe5 {[%clk 0:01:27]} 30. Rxe5 {[%clk 0:00:30]}  Rg8 {[%clk 0:01:26]} 31. Bc5 {[%clk 0:00:26]}  Rg6 {[%clk 0:01:16]} 32. Bd4 {[%clk 0:00:25]}  Kg8 {[%clk 0:01:14]} 33. Rae1 {[%clk 0:00:24]}  Nh3+ {[%clk 0:01:04]} 34. Kh2 {[%clk 0:00:23]}  Rh6 {[%clk 0:01:00]} 35. Re8+ {[%clk 0:00:23]}  Rf8 {[%clk 0:00:55]} 36. Bc4+ {[%clk 0:00:22]}  Kh7 {[%clk 0:00:50]} 37. R1e7+ {[%clk 0:00:21]}  Kg6 {[%clk 0:00:46]} 38. Bd3+ {[%clk 0:00:18]}  Bf5 {[%clk 0:00:26]} 39. Rg7+ {[%clk 0:00:17]}  Kh5 {[%clk 0:00:24]} 40. Bxf5 {[%clk 0:00:13]}  Rxf5 {[%clk 0:00:23]} 41. Kg3 {[%clk 0:00:08]}  Nf4 {[%clk 0:00:17]} 42. Reg8 {[%clk 0:00:04]}  Ne2+ {[%clk 0:00:16]} 43. Kh2 {[%clk 0:00:05]}  Kh4 {[%clk 0:00:15]} 44. Be3 {[%clk 0:00:02]}  Rhh5 {[%clk 0:00:14]} 45. Rxg4# {[%clk 0:00:02]} 1-0


[Site "https://www.chess.com"]

[Event "Titled Tuesday Blitz October 11 Late 2022"]
[White "Rosen, Eric"]
[Black "Przybylski, Wojciech"]
[WhiteFideId "2032562"]
[BlackFideId "1117599"]
[WhiteElo "2362"]
[BlackElo "2221"]
[Result "0-1"]
[Round "11"]
[TimeControl "180+1"]
[Date "2022.10.12"]
[WhiteClock "0:00:01"]
[BlackClock "0:00:11"]

1. d4 {[%clk 0:03:00]}  Nf6 {[%clk 0:02:58]} 2. Bf4 {[%clk 0:03:00]}  e6 {[%clk 0:02:53]} 3. e3 {[%clk 0:02:59]}  b6 {[%clk 0:02:51]} 4. Qf3 {[%clk 0:02:59]}  Nc6 {[%clk 0:02:45]} 5. Nc3 {[%clk 0:02:58]}  Bb7 {[%clk 0:02:43]} 6. g4 {[%clk 0:02:50]}  Bb4 {[%clk 0:02:38]} 7. Ne2 {[%clk 0:02:32]}  Na5 {[%clk 0:02:30]} 8. Qg3 {[%clk 0:02:14]}  Ne4 {[%clk 0:02:13]} 9. Qg1 {[%clk 0:02:10]}  Bxc3+ {[%clk 0:01:55]} 10. bxc3 {[%clk 0:02:07]}  g5 {[%clk 0:01:53]} 11. Be5 {[%clk 0:01:57]}  f6 {[%clk 0:01:52]} 12. f3 {[%clk 0:01:41]}  fxe5 {[%clk 0:01:32]} 13. fxe4 {[%clk 0:01:41]}  Bxe4 {[%clk 0:01:30]} 14. Bg2 {[%clk 0:01:42]}  d5 {[%clk 0:01:14]} 15. Bxe4 {[%clk 0:01:33]}  dxe4 {[%clk 0:01:14]} 16. Qg3 {[%clk 0:01:14]}  O-O {[%clk 0:01:09]} 17. Qxe5 {[%clk 0:01:09]}  Qd5 {[%clk 0:01:04]} 18. Ng3 {[%clk 0:00:49]}  Qxe5 {[%clk 0:00:58]} 19. dxe5 {[%clk 0:00:46]}  Rf3 {[%clk 0:00:57]} 20. Ke2 {[%clk 0:00:43]}  Nc4 {[%clk 0:00:55]} 21. Raf1 {[%clk 0:00:23]}  Rxe3+ {[%clk 0:00:54]} 22. Kd1 {[%clk 0:00:23]}  Rd8+ {[%clk 0:00:47]} 23. Kc1 {[%clk 0:00:23]}  Nxe5 {[%clk 0:00:41]} 24. Re1 {[%clk 0:00:18]}  Nxg4 {[%clk 0:00:33]} 25. Rxe3 {[%clk 0:00:15]}  Nxe3 {[%clk 0:00:32]} 26. Re1 {[%clk 0:00:14]}  Nf5 {[%clk 0:00:29]} 27. Nxe4 {[%clk 0:00:13]}  h6 {[%clk 0:00:30]} 28. Kb2 {[%clk 0:00:08]}  Kf7 {[%clk 0:00:29]} 29. Kb3 {[%clk 0:00:08]}  Rd5 {[%clk 0:00:27]} 30. c4 {[%clk 0:00:07]}  Rd4 {[%clk 0:00:23]} 31. Kc3 {[%clk 0:00:04]}  c5 {[%clk 0:00:22]} 32. a4 {[%clk 0:00:04]}  Nd6 {[%clk 0:00:18]} 33. Nf2 {[%clk 0:00:03]}  Rxc4+ {[%clk 0:00:18]} 34. Kb3 {[%clk 0:00:04]}  Rb4+ {[%clk 0:00:18]} 35. Ka3 {[%clk 0:00:03]}  Nc4+ {[%clk 0:00:18]} 36. Ka2 {[%clk 0:00:04]}  Rb2+ {[%clk 0:00:17]} 37. Ka1 {[%clk 0:00:05]}  Rxc2 {[%clk 0:00:17]} 38. Nd3 {[%clk 0:00:05]}  Rc3 {[%clk 0:00:15]} 39. Rd1 {[%clk 0:00:03]}  Ne3 {[%clk 0:00:15]} 40. Rd2 {[%clk 0:00:02]}  Ra3+ {[%clk 0:00:14]} 41. Kb1 {[%clk 0:00:01]}  Rxa4 {[%clk 0:00:14]} 42. Ne5+ {[%clk 0:00:01]}  Kf6 {[%clk 0:00:14]} 43. Nd7+ {[%clk 0:00:02]}  Ke7 {[%clk 0:00:14]} 44. Ne5 {[%clk 0:00:01]}  Re4 {[%clk 0:00:13]} 45. Nc6+ {[%clk 0:00:01]}  Kf6 {[%clk 0:00:12]} 46. Nxa7 {[%clk 0:00:02]}  Nd5 {[%clk 0:00:12]} 47. Rf2+ {[%clk 0:00:02]}  Rf4 {[%clk 0:00:12]} 48. Rg2 {[%clk 0:00:02]}  e5 {[%clk 0:00:12]} 49. Nc6 {[%clk 0:00:03]}  e4 {[%clk 0:00:12]} 50. Kc1 {[%clk 0:00:03]}  e3 {[%clk 0:00:11]} 51. Kd1 {[%clk 0:00:02]}  Rf2 {[%clk 0:00:11]} 52. Rg3 {[%clk 0:00:02]}  h5 {[%clk 0:00:11]} 53. Ke1 {[%clk 0:00:02]}  h4 {[%clk 0:00:11]} 54. Rg1 {[%clk 0:00:02]}  Nf4 {[%clk 0:00:10]} 55. Nb8 {[%clk 0:00:01]}  Nd3+ {[%clk 0:00:10]} 56. Kd1 {[%clk 0:00:01]}  Rd2# {[%clk 0:00:11]} 0-1


[Site "https://www.chess.com"]